bitfinex-derivatives/quotes_SOLF0:USTF0_20250425
["timestamp","ask_amount","ask_price","bid_price","bid_amount"]
[1745566417974,23.54,153.71,153.65,31.53765338]
[1745566418781,6.5043,153.7,153.67,6.5053]
[1745566419382,6.5045,153.69,153.66,6.5056]
[1745566421084,23.54,153.71,153.62,31.37765338]
[1745566421477,23.54,153.71,153.64,7.99765338]
[1745566421781,23.54,153.71,153.66,7.99765338]
[1745566422081,6.5044,153.7,153.67,6.5051]
[1745566423282,6.5045,153.69,153.66,14.50315338]
[1745566423778,6.5055,153.67,153.64,14.50415338]
[1745566424083,7.99765338,153.7,153.6,7.99765338]
[1745566424481,1.9778,153.69,153.6,7.99765338]
[1745566424681,1.9778,153.69,153.62,7.99765338]
[1745566424884,6.5058,153.66,153.62,7.99765338]
[1745566425184,1.9778,153.69,153.62,7.99765338]
[1745566425484,6.5051,153.68,153.62,7.99765338]
[1745566425983,8.4825,153.69,153.66,6.5056]
[1745566426179,23.54,153.71,153.66,6.5056]
[1745566426582,6.5047,153.69,153.66,6.5056]
[1745566427784,23.54,153.71,153.66,6.5056]
[1745566427984,23.54,153.71,153.65,6.506]
[1745566428385,6.5051,153.68,153.65,6.506]
[1745566429087,23.54,153.71,153.65,6.506]
[1745566429382,23.54,153.71,153.66,6.5057]
[1745566429590,6.5043,153.7,153.64,7.99765338]
[1745566429791,23.54,153.71,153.64,7.99765338]
[1745566430089,6.5047,153.69,153.66,6.5055]
[1745566430383,7.99765338,153.7,153.63,6.507]
[1745566430588,6.5058,153.66,153.6,31.37765338]
[1745566430987,7.99765338,153.7,153.6,31.37765338]
[1745566431183,3.8778,153.69,153.6,31.37765338]
[1745566431388,7.99765338,153.68,153.6,23.38]
[1745566431692,23.38,153.67,153.6,23.38]
[1745566431888,7.99765338,153.66,153.57,23.38]
[1745566432082,7.99765338,153.64,153.57,23.38]
[1745566432392,6.5088,153.59,153.54,23.38]
[1745566432592,7.99765338,153.62,153.55,6.5101]
[1745566432790,6.5094,153.58,153.55,6.5101]
[1745566432985,23.38,153.59,153.52,7.99765338]
[1745566433189,23.38,153.59,153.54,6.5106]
[1745566433389,6.5094,153.58,153.54,6.5106]
[1745566433691,23.38,153.59,153.52,7.99765338]
[1745566433989,23.38,153.59,153.51,23.38]
[1745566434691,23.38,153.59,153.53,6.5111]
[1745566435289,23.38,153.59,153.54,6.5105]
[1745566435793,23.38,153.59,153.51,23.38]
[1745566435987,23.38,153.59,153.52,7.99765338]
[1745566436693,6.5091,153.58,153.55,6.5102]
[1745566437386,6.5097,153.57,153.54,6.5106]
[1745566437590,23.38,153.59,153.52,7.99765338]
[1745566437892,6.5094,153.58,153.54,6.5105]
[1745566438195,23.38,153.59,153.54,6.5105]
[1745566438395,23.38,153.59,153.51,23.38]
[1745566438598,23.38,153.59,153.51,6.5121]
[1745566438991,6.5107,153.55,153.51,6.5121]
[1745566439196,23.38,153.59,153.51,6.5121]
[1745566439399,7.99765338,153.58,153.5,6.5124]
[1745566439693,7.99765338,153.56,153.48,23.4]
[1745566439899,23.4,153.55,153.46,7.99765338]
[1745566440700,6.5115,153.53,153.49,6.5126]
[1745566441100,23.4,153.55,153.49,6.5126]
[1745566441301,6.5116,153.53,153.5,6.5125]
[1745566441502,23.4,153.55,153.48,7.99765338]
[1745566442201,23.4,153.55,153.51,6.5117]
[1745566442404,23.4,153.55,153.48,7.99765338]
[1745566443101,6.5113,153.53,153.48,7.99765338]
[1745566443502,23.4,153.55,153.46,7.99765338]
[1745566443801,6.5124,153.51,153.48,6.513]
[1745566444005,1.8331,153.54,153.46,7.99765338]
[1745566444202,9.83075338,153.54,153.44,7.99765338]
[1745566444600,6.5127,153.5,153.47,6.5138]
[1745566445500,23.4,153.51,153.44,7.99765338]
[1745566445705,23.4,153.51,153.42,35.29365338]
[1745566445904,23.4,153.51,153.42,33.40455338]
[1745566446205,25.3297,153.51,153.42,33.40455338]
[1745566446403,25.3297,153.51,153.44,6.5148]
[1745566446606,25.3297,153.51,153.42,31.39765338]
[1745566446801,6.5161,153.42,153.39,6.517]
[1745566447007,6.5161,153.42,153.35,23.4]
[1745566447200,6.5161,153.42,153.35,31.39765338]
[1745566447396,6.5164,153.41,153.35,31.39765338]
[1745566447598,27.2328,153.45,153.35,23.4]
[1745566447803,9.93355338,153.44,153.36,6.5181]
[1745566448003,6.517,153.4,153.34,7.99765338]
[1745566448405,23.4,153.41,153.37,6.5178]
[1745566448697,29.9164,153.41,153.37,6.5178]
[1745566449006,23.4,153.41,153.36,6.5183]
[1745566449203,29.9167,153.41,153.34,7.99765338]
[1745566449508,23.4,153.41,153.34,7.99765338]
[1745566450205,6.5171,153.4,153.34,7.99765338]
[1745566450507,23.4,153.41,153.34,7.99765338]
[1745566450707,23.4,153.41,153.38,6.5173]
[1745566450708,29.9164,153.41,153.38,6.5173]
[1745566450902,23.4,153.41,153.34,7.99765338]
[1745566451801,29.9166,153.41,153.34,7.99765338]
[1745566452197,23.4,153.41,153.34,7.99765338]
[1745566452402,6.5169,153.4,153.37,6.5177]
[1745566452601,6.5169,153.4,153.34,7.99765338]
[1745566452602,23.4,153.41,153.34,7.99765338]
[1745566453006,23.4,153.41,153.32,31.39765338]
[1745566453509,23.4,153.41,153.35,6.5188]
[1745566453510,6.518,153.38,153.35,6.5188]
[1745566453806,6.518,153.38,153.32,31.39765338]
[1745566454007,6.518,153.38,153.32,23.4]
[1745566454205,6.5181,153.37,153.34,6.5191]
[1745566454406,7.99765338,153.4,153.32,23.4]
[1745566454611,7.99765338,153.4,153.3,7.99765338]
[1745566454810,7.99765338,153.4,153.33,6.5195]
[1745566455214,6.5185,153.36,153.33,6.5195]
[1745566455605,23.62,153.37,153.34,6.5193]
[1745566455806,6.5185,153.36,153.3,7.99765338]
[1745566456511,30.1382,153.37,153.3,7.99765338]
[1745566456710,23.62,153.37,153.3,7.99765338]
[1745566457213,23.62,153.37,153.35,6.5185]
[1745566457414,23.62,153.37,153.3,7.99765338]
[1745566457912,30.1382,153.37,153.33,6.5195]
[1745566458413,30.1382,153.37,153.33,6.5196]
[1745566458905,23.62,153.37,153.3,7.99765338]
[1745566459111,23.62,153.37,153.33,6.5194]
[1745566459314,6.5185,153.36,153.33,6.5194]
[1745566460208,6.5196,153.34,153.31,6.5204]
[1745566460708,23.62,153.37,153.3,7.99765338]
[1745566461609,6.5194,153.34,153.3,7.99765338]
[1745566462015,6.5194,153.34,153.31,6.5204]
[1745566462314,23.62,153.37,153.3,7.99765338]
[1745566462614,6.5189,153.36,153.32,6.5201]
[1745566462813,23.62,153.37,153.32,6.5201]
[1745566463106,23.62,153.37,153.3,7.99765338]
[1745566463312,6.5191,153.35,153.32,6.5201]
[1745566464212,6.5194,153.34,153.31,6.5204]
[1745566464412,23.62,153.37,153.3,7.99765338]
[1745566464717,6.5192,153.35,153.32,6.52]
[1745566465013,23.62,153.37,153.3,7.99765338]
[1745566465314,6.519,153.35,153.33,6.5197]
[1745566465815,6.5186,153.36,153.3,7.99765338]
[1745566466114,23.62,153.39,153.32,7.99765338]
[1745566466312,7.99765338,153.42,153.37,6.518]
[1745566466313,6.517,153.4,153.37,6.518]
[1745566467714,6.5165,153.41,153.38,6.5175]
[1745566468115,27.5682,153.43,153.38,7.99765338]
[1745566468514,6.5161,153.42,153.39,6.517]
[1745566469119,34.084,153.43,153.4,6.5164]
[1745566469413,23.62,153.43,153.4,6.5164]
[1745566469609,30.1356,153.43,153.4,6.5164]
[1745566469814,30.1356,153.43,153.41,6.5162]
[1745566470114,30.1356,153.43,153.38,7.99765338]
[1745566470415,23.62,153.43,153.38,7.99765338]
[1745566470610,23.62,153.43,153.4,7.99765338]
[1745566470915,23.62,153.46,153.4,7.99765338]
[1745566471310,1.9359,153.48,153.45,6.5146]
[1745566471513,6.5136,153.48,153.45,6.5146]
[1745566472610,23.62,153.49,153.42,31.61765338]
[1745566473519,23.62,153.49,153.45,6.5146]
[1745566473719,6.514,153.47,153.42,31.61765338]
[1745566474118,6.514,153.47,153.44,6.515]
[1745566474320,6.5144,153.46,153.42,31.61765338]
[1745566475021,6.515,153.45,153.42,23.62]
[1745566475216,23.62,153.49,153.41,6.5161]
[1745566475410,23.62,153.49,153.4,7.99765338]
[1745566475616,7.99765338,153.48,153.39,23.62]
[1745566475817,7.99765338,153.48,153.4,6.5168]
[1745566476220,7.99765338,153.48,153.39,23.62]
[1745566476421,7.99765338,153.48,153.4,6.5167]
[1745566476819,6.5157,153.43,153.4,6.5167]
[1745566477021,7.99765338,153.48,153.41,6.5163]
[1745566477520,6.5154,153.44,153.41,6.5163]
[1745566477921,7.99765338,153.48,153.39,23.62]
[1745566478321,6.5153,153.44,153.41,6.5163]
[1745566478520,7.99765338,153.48,153.39,23.62]
[1745566478921,6.515,153.45,153.42,6.5156]
[1745566479423,6.5151,153.44,153.42,6.5156]
[1745566479724,7.99765338,153.48,153.42,6.5156]
[1745566480018,7.99765338,153.48,153.41,6.5161]
[1745566480225,7.99765338,153.48,153.39,23.62]
[1745566480620,7.99765338,153.48,153.4,6.5165]
[1745566480819,7.99765338,153.48,153.39,23.62]
[1745566481023,7.99765338,153.48,153.41,6.5163]
[1745566481323,7.99765338,153.48,153.39,23.62]
[1745566481622,6.5157,153.43,153.4,6.5165]
[1745566482826,6.5159,153.42,153.4,6.5165]
[1745566483321,6.5165,153.41,153.36,31.49765338]
[1745566483526,23.5,153.45,153.36,31.49765338]
[1745566483825,23.5,153.45,153.36,30.0181]
[1745566483826,6.5175,153.39,153.36,30.0181]
[1745566484026,13.75285338,153.44,153.36,23.5]
[1745566484525,13.75285338,153.44,153.37,6.518]
[1745566484526,6.5171,153.4,153.37,6.518]
[1745566484727,6.5171,153.4,153.36,23.5]
[1745566485026,6.5171,153.4,153.37,6.5178]
[1745566486432,13.75285338,153.44,153.36,23.5]
[1745566486627,5.7552,153.44,153.36,23.5]
[1745566486833,5.7552,153.44,153.38,6.5172]
[1745566487029,6.5163,153.42,153.38,6.5172]
[1745566487332,5.7552,153.44,153.38,6.5172]
[1745566487526,5.7552,153.44,153.39,6.5171]
[1745566487729,6.5161,153.42,153.39,6.5171]
[1745566488036,5.7552,153.44,153.39,6.5171]
[1745566488233,6.5164,153.41,153.38,6.5174]
[1745566489626,6.5164,153.41,153.39,6.5171]
[1745566489828,6.5161,153.42,153.36,23.5]
[1745566490031,23.5,153.45,153.38,7.99765338]
[1745566491337,6.5157,153.43,153.4,6.5167]
[1745566491540,23.5,153.45,153.38,7.99765338]
[1745566491735,7.99765338,153.42,153.32,7.99765338]
[1745566491935,23.5,153.41,153.32,7.99765338]
[1745566492237,6.5179,153.38,153.32,7.99765338]
[1745566492831,6.5181,153.37,153.34,6.5191]
[1745566493442,6.5185,153.36,153.32,7.99765338]
[1745566493841,23.5,153.41,153.32,7.99765338]
[1745566494140,23.5,153.41,153.34,6.5193]
[1745566494638,6.5183,153.37,153.34,6.5193]
[1745566494834,6.5183,153.37,153.31,23.5]
[1745566494835,23.5,153.41,153.31,14.51805338]
[1745566495038,7.99765338,153.4,153.3,7.99765338]
[1745566495238,6.5191,153.35,153.3,7.99765338]
[1745566496242,6.5191,153.35,153.32,6.5199]
[1745566496641,6.5191,153.35,153.3,7.99765338]
[1745566496941,6.5187,153.36,153.3,7.99765338]
[1745566497140,7.99765338,153.4,153.3,7.99765338]
[1745566497440,7.99765338,153.4,153.33,6.5195]
[1745566497640,7.99765338,153.4,153.3,7.99765338]
[1745566497943,7.99765338,153.4,153.33,6.5195]
[1745566498141,6.5189,153.36,153.33,6.5195]
[1745566498343,7.99765338,153.4,153.33,6.5195]
[1745566499043,7.99765338,153.4,153.34,6.5192]
[1745566499242,7.99765338,153.4,153.3,7.99765338]
[1745566499443,6.5188,153.36,153.33,6.5196]
[1745566500043,6.5189,153.35,153.33,6.5196]
[1745566500240,7.99765338,153.4,153.34,6.5193]
[1745566500439,7.99765338,153.4,153.3,7.99765338]
[1745566500935,7.99765338,153.4,153.31,6.5204]
[1745566501141,6.5195,153.34,153.31,6.5204]
[1745566501340,23.5,153.36,153.31,6.5204]
[1745566501942,23.5,153.36,153.29,23.5]
[1745566502446,6.5196,153.34,153.31,6.5206]
[1745566502745,6.5196,153.34,153.29,23.5]
[1745566502939,6.5191,153.35,153.33,6.5197]
[1745566504350,6.5191,153.35,153.32,6.52]
[1745566504545,6.5194,153.34,153.3,7.99765338]
[1745566505147,6.5191,153.35,153.32,6.52]
[1745566505445,23.5,153.36,153.32,6.52]
[1745566505748,23.5,153.36,153.31,6.5204]
[1745566506247,23.5,153.36,153.3,6.521]
[1745566506841,23.5,153.36,153.29,23.5]
[1745566507441,6.5204,153.32,153.29,30.0213]
[1745566507747,23.5,153.36,153.28,7.99765338]
[1745566507941,6.5206,153.32,153.29,6.5212]
[1745566508149,23.5,153.36,153.26,25.4507]
[1745566508339,23.5,153.36,153.27,7.99765338]
[1745566508540,6.5204,153.32,153.27,7.99765338]
[1745566509047,6.5204,153.32,153.3,6.5208]
[1745566510149,23.5,153.36,153.31,6.5202]
[1745566510150,6.5195,153.34,153.31,6.5202]
[1745566510346,23.5,153.36,153.29,7.99765338]
[1745566511344,6.5196,153.34,153.29,7.99765338]
[1745566511945,23.5,153.36,153.31,7.99765338]
[1745566512148,23.44,153.39,153.33,7.99765338]
[1745566512450,6.5181,153.37,153.33,7.99765338]
[1745566512650,23.44,153.41,153.33,7.99765338]
[1745566512950,6.5186,153.36,153.34,6.5192]
[1745566513350,23.44,153.41,153.33,7.99765338]
[1745566513650,23.44,153.41,153.31,11.76025338]
[1745566514551,7.99765338,153.4,153.31,7.99765338]
[1745566514952,1.8861,153.39,153.32,6.5201]
[1745566515553,6.5192,153.35,153.32,6.5201]
[1745566516357,23.44,153.37,153.3,23.44]
[1745566516554,23.44,153.37,153.29,7.99765338]
[1745566516757,27.184,153.37,153.27,386.43765338]
[1745566517055,7.99765338,153.36,153.27,31.43765338]
[1745566517256,7.99765338,153.34,153.25,7.99765338]
[1745566517556,23.44,153.33,153.27,6.522]
[1745566517751,23.44,153.33,153.25,31.43765338]
[1745566518754,23.44,153.33,153.27,6.522]
[1745566519956,23.44,153.33,153.25,7.99765338]
[1745566520257,6.5211,153.3,153.25,7.99765338]
[1745566520956,6.5208,153.31,153.28,6.5216]
[1745566521453,23.44,153.33,153.27,7.99765338]
[1745566521654,29.9601,153.33,153.3,6.5208]
[1745566521953,23.44,153.33,153.3,6.5208]
[1745566522357,23.44,153.33,153.31,6.5205]
[1745566522758,23.44,153.36,153.29,7.99765338]
[1745566522957,23.44,153.36,153.3,6.5208]
[1745566523858,6.52,153.33,153.31,6.5206]
[1745566524154,23.44,153.36,153.29,7.99765338]
[1745566524458,23.44,153.36,153.31,7.99765338]
[1745566524958,23.44,153.36,153.31,14.51795338]
[1745566525260,23.44,153.36,153.31,7.99765338]
[1745566525958,6.5199,153.33,153.31,14.51825338]
[1745566526854,23.44,153.36,153.31,7.99765338]
[1745566527358,25.3261,153.39,153.31,7.99765338]
[1745566527855,6.5191,153.35,153.31,14.51785338]
[1745566528659,6.5191,153.35,153.32,6.52]
[1745566529661,6.5193,153.34,153.32,6.52]
[1745566530664,25.3261,153.39,153.33,6.5197]
[1745566530863,25.3261,153.39,153.33,7.99765338]
[1745566531161,23.44,153.41,153.33,7.99765338]
[1745566531462,6.5174,153.39,153.36,6.5185]
[1745566531653,23.44,153.41,153.35,31.43765338]
[1745566532263,6.5179,153.38,153.35,37.95625338]
[1745566532962,23.44,153.41,153.33,7.99765338]
[1745566533161,23.44,153.41,153.31,9.98405338]
[1745566533465,6.5193,153.35,153.31,7.99765338]
[1745566533661,23.44,153.41,153.31,7.99765338]
[1745566533962,23.44,153.41,153.33,6.5195]
[1745566534563,6.5188,153.36,153.33,6.5195]
[1745566535263,6.5188,153.36,153.34,6.5192]
[1745566535862,6.5188,153.36,153.33,6.5196]
[1745566536260,23.44,153.41,153.34,7.99765338]
[1745566536463,23.44,153.41,153.38,6.5173]
[1745566536661,6.5161,153.42,153.37,7.99765338]
[1745566537362,29.9555,153.44,153.39,7.99765338]
[1745566537562,23.44,153.44,153.39,7.99765338]
[1745566537767,6.5159,153.43,153.39,7.99765338]
[1745566538058,23.44,153.44,153.4,6.5165]
[1745566538262,29.9554,153.44,153.39,7.99765338]
[1745566538465,23.44,153.44,153.39,7.99765338]
[1745566538664,23.44,153.44,153.4,6.5166]
[1745566539565,6.5157,153.43,153.4,6.5166]
[1745566539765,6.5157,153.43,153.41,6.5163]
[1745566539964,23.44,153.44,153.41,6.5163]
[1745566540166,29.9553,153.44,153.41,6.5163]
[1745566540467,29.9553,153.44,153.42,6.5159]
[1745566540664,6.5153,153.44,153.42,6.5159]
[1745566543064,6.5153,153.44,153.41,6.5162]
[1745566544168,6.5148,153.45,153.42,6.5159]
[1745566545168,6.5148,153.45,153.43,6.5154]
[1745566545463,25.3632,153.47,153.41,7.99765338]
[1745566545668,23.42,153.47,153.43,7.99765338]
[1745566545873,23.42,153.47,153.44,6.515]
[1745566547070,23.42,153.47,153.45,6.5144]
[1745566547372,1.9966,153.48,153.45,6.5144]
[1745566547573,1.9966,153.48,153.41,7.99765338]
[1745566548172,6.514,153.47,153.44,6.5148]
[1745566548371,1.9966,153.48,153.41,7.99765338]
[1745566548971,6.514,153.47,153.44,6.5148]
[1745566550272,6.5143,153.46,153.43,6.5153]
[1745566550673,1.9966,153.48,153.43,6.5153]
[1745566551073,1.9966,153.48,153.42,6.5158]
[1745566551369,1.9966,153.48,153.41,7.99765338]
[1745566551670,6.5147,153.45,153.41,7.99765338]
[1745566551870,1.9966,153.48,153.43,6.5153]
[1745566552071,8.5103,153.48,153.41,7.99765338]
[1745566552474,1.9966,153.48,153.41,7.99765338]
[1745566552774,6.5139,153.47,153.41,7.99765338]
[1745566553069,1.9966,153.48,153.45,6.5144]
[1745566553575,6.514,153.47,153.44,11.65224247]
[1745566553975,6.514,153.47,153.44,5.13734247]
[1745566554177,6.514,153.47,153.45,6.5144]
[1745566554374,8.51,153.48,153.44,5.13734247]
[1745566554774,8.51,153.48,153.45,6.5144]
[1745566555177,8.51,153.48,153.44,5.13734247]
[1745566555378,8.51,153.48,153.45,6.5143]
[1745566555675,8.51,153.48,153.44,5.13734247]
[1745566555676,23.42,153.5,153.46,5.13734247]
[1745566556073,23.42,153.5,153.48,6.5131]
[1745566556271,29.9325,153.5,153.48,6.5131]
[1745566556769,23.42,153.5,153.48,5.13734247]
[1745566557078,3.9728,153.52,153.42,23.42]
[1745566557278,9.11014247,153.52,153.45,5.13734247]
[1745566557478,9.11014247,153.52,153.47,5.13734247]
[1745566557780,6.5123,153.51,153.48,6.513]
[1745566557981,6.5123,153.51,153.47,5.13734247]
[1745566558379,6.5123,153.51,153.48,6.513]
[1745566558980,6.5123,153.51,153.49,6.5129]
[1745566559475,8.4936,153.52,153.5,6.5122]
[1745566559674,23.42,153.53,153.49,5.13734247]
[1745566560179,29.9315,153.53,153.49,5.13734247]
[1745566560579,23.42,153.53,153.49,5.13734247]
[1745566560783,6.5117,153.52,153.5,6.5123]
[1745566561081,23.42,153.53,153.5,6.5123]
[1745566561281,29.9316,153.53,153.5,6.5123]
[1745566561482,29.9316,153.53,153.49,5.13734247]
[1745566561879,6.5121,153.52,153.5,6.5125]
[1745566562082,34.31474247,153.56,153.49,5.13734247]
[1745566562278,5.13734247,153.54,153.49,5.13734247]
[1745566562482,6.512,153.52,153.49,11.65004247]
[1745566562885,6.512,153.52,153.49,5.13734247]
[1745566563084,6.512,153.52,153.5,6.5125]
[1745566563278,6.512,153.52,153.49,5.13734247]
[1745566563581,6.512,153.52,153.49,11.64994247]
[1745566564087,5.13734247,153.54,153.49,11.64994247]
[1745566564582,6.5121,153.52,153.49,11.64994247]
[1745566564785,5.13734247,153.54,153.49,11.64994247]
[1745566565083,5.13734247,153.54,153.5,6.5125]
[1745566565284,5.13734247,153.52,153.47,5.13734247]
[1745566565479,5.13734247,153.5,153.46,23.42]
[1745566565682,5.13734247,153.5,153.47,6.5137]
[1745566566286,6.5132,153.49,153.47,6.5137]
[1745566567085,11.65004247,153.5,153.47,6.5137]
[1745566567285,6.5127,153.5,153.48,6.5133]
[1745566567485,28.55734247,153.52,153.48,6.5133]
[1745566568382,6.5125,153.51,153.48,6.5133]
[1745566568686,28.55734247,153.52,153.48,6.5133]
[1745566568887,6.5123,153.51,153.48,6.5133]
[1745566569290,28.55734247,153.52,153.48,6.5133]
[1745566569686,6.5123,153.51,153.48,6.5133]
[1745566569985,28.55734247,153.52,153.48,6.5133]
[1745566570287,6.5122,153.51,153.48,6.5133]
[1745566570488,28.55734247,153.52,153.48,6.5133]
[1745566571084,6.5122,153.51,153.48,6.5133]
[1745566571787,6.5126,153.5,153.48,6.5133]
[1745566573790,28.55734247,153.52,153.47,11.65094247]
[1745566573989,5.13734247,153.5,153.43,28.55734247]
[1745566574290,5.13734247,153.5,153.46,6.5141]
[1745566575291,6.513,153.49,153.46,6.5141]
[1745566575491,5.13734247,153.5,153.46,6.5141]
[1745566575889,6.5141,153.47,153.45,6.5144]
[1745566578096,6.5136,153.48,153.45,6.5144]
[1745566578294,5.13734247,153.5,153.45,6.5144]
[1745566579795,5.13734247,153.48,153.44,5.13734247]
[1745566579989,6.5145,153.46,153.43,23.42]
[1745566580394,5.13734247,153.48,153.43,23.42]
[1745566580892,5.13734247,153.48,153.43,6.5153]
[1745566581195,23.42,153.47,153.41,5.13734247]
[1745566581494,6.5161,153.42,153.38,5.13734247]
[1745566581893,6.5161,153.42,153.39,6.5169]
[1745566582195,5.13734247,153.45,153.4,5.13734247]
[1745566582392,5.13734247,153.45,153.41,6.5161]
[1745566582588,5.13734247,153.45,153.4,5.13734247]
[1745566583493,5.13734247,153.45,153.4,11.65384247]
[1745566583795,6.516,153.42,153.4,11.65384247]
[1745566584895,6.5163,153.41,153.4,5.13734247]
[1745566585096,28.55734247,153.43,153.38,5.13734247]
[1745566585598,23.42,153.43,153.38,5.13734247]
[1745566586096,29.9359,153.43,153.4,6.5165]
[1745566586500,6.516,153.42,153.39,6.5169]
[1745566586700,6.516,153.42,153.38,5.13734247]
[1745566586999,23.42,153.43,153.38,5.13734247]
[1745566587293,29.9359,153.43,153.39,6.517]
[1745566587499,29.9359,153.43,153.38,5.13734247]
[1745566587695,3.9296,153.48,153.42,5.13734247]
[1745566587899,6.5152,153.44,153.42,5.13734247]
[1745566588298,28.55734247,153.47,153.42,5.13734247]
[1745566589598,28.55734247,153.47,153.42,11.65314247]
[1745566589799,28.55734247,153.47,153.42,5.13734247]
[1745566590195,28.55734247,153.47,153.42,11.65324247]
[1745566590397,28.55734247,153.47,153.42,5.13734247]
[1745566590999,6.5153,153.44,153.42,5.13734247]
[1745566591698,6.5148,153.45,153.42,5.13734247]
[1745566592201,6.5151,153.44,153.42,11.65304247]
[1745566593500,28.55734247,153.47,153.42,11.65304247]
[1745566593501,6.5155,153.43,153.42,5.13734247]
[1745566593703,28.55734247,153.47,153.42,5.13734247]
[1745566594502,28.55734247,153.47,153.42,11.65324247]
[1745566594700,28.55734247,153.47,153.42,5.13734247]
[1745566595202,23.42,153.5,153.46,5.13734247]
[1745566595803,28.55734247,153.5,153.46,5.13734247]
[1745566596403,6.5132,153.49,153.47,6.5136]
[1745566597105,28.55734247,153.5,153.46,11.65134247]
[1745566597703,6.5133,153.49,153.46,11.65134247]
[1745566597905,28.55734247,153.5,153.46,11.65134247]
[1745566598707,6.5136,153.48,153.46,5.13734247]
[1745566599604,6.5136,153.48,153.46,11.65154247]
[1745566600506,6.5138,153.47,153.46,5.13734247]
[1745566601407,6.5135,153.48,153.46,5.13734247]
[1745566602103,28.55734247,153.5,153.46,11.65134247]
[1745566602608,6.513,153.49,153.46,11.65134247]
[1745566602809,28.55734247,153.5,153.46,11.65134247]
[1745566603411,6.513,153.49,153.47,6.5137]
[1745566604810,6.513,153.49,153.48,5.13734247]
[1745566605614,29.9327,153.5,153.48,5.13734247]
[1745566605908,23.42,153.5,153.48,5.13734247]
[1745566606105,29.9327,153.5,153.48,11.65034247]
[1745566606310,23.42,153.5,153.48,5.13734247]
[1745566607008,23.4,153.53,153.48,5.13734247]
[1745566607207,23.4,153.53,153.5,5.13734247]
[1745566607411,29.9115,153.53,153.5,11.64954247]
[1745566608008,23.4,153.53,153.52,5.13734247]
[1745566608214,27.2817,153.56,153.52,5.13734247]
[1745566608612,6.5107,153.55,153.52,11.64874247]
[1745566608813,27.2817,153.56,153.52,11.64874247]
[1745566609116,6.5106,153.55,153.52,11.64874247]
[1745566610013,27.2817,153.56,153.52,5.13734247]
[1745566610316,6.5113,153.53,153.52,5.13734247]
[1745566610509,27.2817,153.56,153.52,5.13734247]
[1745566610715,25.4255,153.56,153.52,5.13734247]
[1745566611019,6.5111,153.54,153.52,5.13734247]
[1745566611410,6.5113,153.53,153.52,5.13734247]
[1745566611608,7.16284247,153.56,153.5,11.64964247]
[1745566611911,6.512,153.52,153.5,5.13734247]
[1745566613519,6.512,153.52,153.5,11.64984247]
[1745566614918,6.5115,153.53,153.5,5.13734247]
[1745566615217,23.4,153.55,153.5,5.13734247]
[1745566615518,6.5116,153.53,153.5,11.64964247]
[1745566615919,6.5116,153.53,153.5,5.13734247]
[1745566616714,23.4,153.55,153.52,11.64884247]
[1745566617319,29.9108,153.55,153.52,11.64884247]
[1745566617621,23.4,153.55,153.54,6.5108]
[1745566617916,6.5099,153.57,153.54,6.5108]
[1745566618321,23.4,153.58,153.53,6.5112]
[1745566618617,5.13734247,153.57,153.53,6.5112]
[1745566619123,6.5102,153.56,153.53,6.5112]
[1745566619725,29.9094,153.58,153.54,5.13734247]
[1745566620121,29.9094,153.58,153.55,6.5102]
[1745566620824,29.9094,153.58,153.56,6.51]
[1745566621023,29.9094,153.58,153.54,5.13734247]
[1745566622019,29.9094,153.58,153.56,6.5098]
[1745566622519,29.9094,153.58,153.55,6.5101]
[1745566622715,28.53734247,153.58,153.54,5.13734247]
[1745566622915,5.13734247,153.56,153.51,5.13734247]
[1745566623323,6.5107,153.55,153.53,6.5112]